[Event "*** Titled Tuesday Blitz"]
[Site "Chess.com"]
[Date "2020.04.28"]
[Round "5"]
[White "RubensCezila"]
[Black "Efremov_Vlad"]
[Result "1/2-1/2"]
[WhiteElo "2463"]
[BlackElo "2158"]
[TimeControl "180+1"]
[EndTime "10:55:00 PDT"]
[Termination "Game drawn by repetition"]

1. c4 {[%clk 0:03:00.9]} 1... e6 {[%clk 0:02:59.4]} 2. g3 {[%clk 0:03:00.1]}
2... d5 {[%clk 0:02:59.5]} 3. cxd5 {[%clk 0:03:00]} 3... exd5 {[%clk 0:02:58.9]}
4. Bg2 {[%clk 0:03:00]} 4... Nf6 {[%clk 0:02:59.1]} 5. Nf3 {[%clk 0:03:00]} 5...
c6 {[%clk 0:02:59.3]} 6. O-O {[%clk 0:03:00.1]} 6... Be7 {[%clk 0:02:59.9]} 7.
b3 {[%clk 0:03:00.3]} 7... O-O {[%clk 0:02:59.9]} 8. Bb2 {[%clk 0:03:00.6]} 8...
Bf5 {[%clk 0:02:58.7]} 9. d3 {[%clk 0:03:00.1]} 9... Nbd7 {[%clk 0:02:51.2]} 10.
Nbd2 {[%clk 0:02:58.5]} 10... Rc8 {[%clk 0:02:49.6]} 11. Qe1 {[%clk 0:02:54.2]}
11... Bg6 {[%clk 0:02:26.6]} 12. Nh4 {[%clk 0:02:45.5]} 12... Re8 {[%clk
0:02:15.7]} 13. Ndf3 {[%clk 0:02:29.1]} 13... b5 {[%clk 0:01:58.5]} 14. Nd4
{[%clk 0:02:21.6]} 14... a6 {[%clk 0:01:53.6]} 15. Ndf5 {[%clk 0:02:00.9]} 15...
Bf8 {[%clk 0:01:53.4]} 16. Qd2 {[%clk 0:01:56.6]} 16... c5 {[%clk 0:01:42.3]}
17. e3 {[%clk 0:01:50.5]} 17... Ne5 {[%clk 0:01:40.2]} 18. f4 {[%clk 0:01:45.6]}
18... Nc6 {[%clk 0:01:33.9]} 19. Rac1 {[%clk 0:01:43.2]} 19... Qd7 {[%clk
0:01:23.7]} 20. Bh3 {[%clk 0:01:33.7]} 20... Qd8 {[%clk 0:01:15.2]} 21. g4
{[%clk 0:01:13.9]} 21... Bxf5 {[%clk 0:01:07.7]} 22. Nxf5 {[%clk 0:01:12.5]}
22... g6 {[%clk 0:01:04.4]} 23. g5 {[%clk 0:01:09.1]} 23... Nh5 {[%clk
0:00:59.5]} 24. Nh6+ {[%clk 0:01:03.8]} 24... Bxh6 {[%clk 0:00:57.3]} 25. gxh6
{[%clk 0:01:04.7]} 25... Qe7 {[%clk 0:00:51.1]} 26. Bxc8 {[%clk 0:01:02.1]}
26... Rxc8 {[%clk 0:00:49.3]} 27. Rce1 {[%clk 0:00:47.2]} 27... Qh4 {[%clk
0:00:46.1]} 28. Qc3 {[%clk 0:00:36.6]} 28... Qg4+ {[%clk 0:00:41]} 29. Kh1
{[%clk 0:00:35.7]} 29... d4 {[%clk 0:00:41.5]} 30. Qxc5 {[%clk 0:00:27.9]} 30...
Ng3+ {[%clk 0:00:29.4]} 31. hxg3 {[%clk 0:00:27.1]} 31... Qh3+ {[%clk
0:00:29.7]} 32. Kg1 {[%clk 0:00:27.2]} 32... Qxg3+ {[%clk 0:00:30.3]} 33. Kh1
{[%clk 0:00:27.8]} 33... Qh3+ {[%clk 0:00:31]} 34. Kg1 {[%clk 0:00:28.3]} 34...
Qg3+ {[%clk 0:00:31.7]} 35. Kh1 {[%clk 0:00:28.7]} 35... Qh3+ {[%clk 0:00:32.2]}
36. Kg1 {[%clk 0:00:28.9]} 36... Qg3+ {[%clk 0:00:32.6]} 1/2-1/2

[Event "*** Titled Tuesday Blitz"]
[Site "Chess.com"]
[Date "2020.04.28"]
[Round "5"]
[White "talman67"]
[Black "Fandorine"]
[Result "0-1"]
[WhiteElo "2565"]
[BlackElo "2876"]
[TimeControl "180+1"]
[EndTime "10:55:05 PDT"]
[Termination "Fandorine won by resignation"]

1. e4 {[%clk 0:03:00.9]} 1... c5 {[%clk 0:02:59.8]} 2. Nf3 {[%clk 0:03:00.8]}
2... d6 {[%clk 0:03:00.1]} 3. d4 {[%clk 0:03:01.2]} 3... cxd4 {[%clk 0:03:01]}
4. Nxd4 {[%clk 0:03:02.1]} 4... Nf6 {[%clk 0:03:01.5]} 5. Nc3 {[%clk 0:03:02.5]}
5... a6 {[%clk 0:03:01.9]} 6. h3 {[%clk 0:03:02.9]} 6... e6 {[%clk 0:03:01.4]}
7. g4 {[%clk 0:03:02.6]} 7... h6 {[%clk 0:03:01.9]} 8. Bg2 {[%clk 0:02:57.2]}
8... g5 {[%clk 0:03:01.7]} 9. Be3 {[%clk 0:02:40.5]} 9... Nbd7 {[%clk
0:03:00.2]} 10. Qe2 {[%clk 0:02:11.6]} 10... Ne5 {[%clk 0:02:59.4]} 11. f4
{[%clk 0:02:08.1]} 11... gxf4 {[%clk 0:02:58.9]} 12. Bxf4 {[%clk 0:02:09]} 12...
Qc7 {[%clk 0:02:53.6]} 13. O-O {[%clk 0:02:07]} 13... Nfd7 {[%clk 0:02:49.1]}
14. Kh1 {[%clk 0:01:33.4]} 14... b5 {[%clk 0:02:38.7]} 15. a3 {[%clk 0:01:11.9]}
15... Bb7 {[%clk 0:02:37]} 16. Qf2 {[%clk 0:01:10]} 16... Be7 {[%clk 0:02:26.6]}
17. Nf3 {[%clk 0:01:06.9]} 17... Bf6 {[%clk 0:02:17.6]} 18. Nxe5 {[%clk
0:00:49.6]} 18... Nxe5 {[%clk 0:02:09.9]} 19. Bg3 {[%clk 0:00:49.6]} 19... Bg7
{[%clk 0:02:05.2]} 20. Rad1 {[%clk 0:00:50]} 20... Rf8 {[%clk 0:02:00.5]} 21.
Qd2 {[%clk 0:00:35.5]} 21... O-O-O {[%clk 0:01:56.5]} 22. Ne2 {[%clk 0:00:33.5]}
22... Nc4 {[%clk 0:01:49.9]} 23. Qe1 {[%clk 0:00:33.6]} 23... Nxb2 {[%clk
0:01:43.8]} 24. Rb1 {[%clk 0:00:32.6]} 24... Nc4 {[%clk 0:01:33.6]} 25. Nf4
{[%clk 0:00:33.2]} 25... Be5 {[%clk 0:01:31.6]} 26. a4 {[%clk 0:00:32.4]} 26...
bxa4 {[%clk 0:01:27.6]} 27. Rb4 {[%clk 0:00:19.1]} 27... a3 {[%clk 0:01:20.6]}
28. Qe2 {[%clk 0:00:19]} 28... Nb6 {[%clk 0:01:03.6]} 29. c4 {[%clk 0:00:16.8]}
29... Nd7 {[%clk 0:00:59.8]} 30. Qf2 {[%clk 0:00:12.8]} 30... Nc5 {[%clk
0:00:58.6]} 31. Nxe6 {[%clk 0:00:12.8]} 31... Bxg3 {[%clk 0:00:46.7]} 32. Nxc7
{[%clk 0:00:12.7]} 32... Bxf2 {[%clk 0:00:46.6]} 33. Nxa6 {[%clk 0:00:10.2]}
33... Nxa6 {[%clk 0:00:44.3]} 0-1

[Event "*** Titled Tuesday Blitz"]
[Site "Chess.com"]
[Date "2020.04.28"]
[Round "5"]
[White "GM_LOADING"]
[Black "AsaHoffmann"]
[Result "1-0"]
[WhiteElo "2603"]
[BlackElo "2314"]
[TimeControl "180+1"]
[EndTime "10:55:06 PDT"]
[Termination "GM_LOADING won by resignation"]

1. e4 {[%clk 0:03:00.9]} 1... d6 {[%clk 0:02:58.9]} 2. d4 {[%clk 0:02:58.8]}
2... Nf6 {[%clk 0:02:55.8]} 3. Nc3 {[%clk 0:02:59.3]} 3... c6 {[%clk 0:02:55.3]}
4. f4 {[%clk 0:02:58.6]} 4... Qa5 {[%clk 0:02:54.2]} 5. Bd3 {[%clk 0:02:57.5]}
5... e5 {[%clk 0:02:53.3]} 6. Nf3 {[%clk 0:02:53.1]} 6... exd4 {[%clk
0:02:52.5]} 7. Nxd4 {[%clk 0:02:52.7]} 7... Qb6 {[%clk 0:02:50.2]} 8. Nb3 {[%clk
0:02:40.4]} 8... a5 {[%clk 0:02:48.1]} 9. a4 {[%clk 0:02:35]} 9... Na6 {[%clk
0:02:46.2]} 10. Qe2 {[%clk 0:02:30.5]} 10... Nb4 {[%clk 0:02:42]} 11. Be3 {[%clk
0:02:30.8]} 11... Nxd3+ {[%clk 0:02:41]} 12. Qxd3 {[%clk 0:02:31.7]} 12... Qc7
{[%clk 0:02:39.9]} 13. h3 {[%clk 0:02:32.3]} 13... Be7 {[%clk 0:02:37.2]} 14.
O-O {[%clk 0:02:16.3]} 14... b6 {[%clk 0:02:34.4]} 15. Qd2 {[%clk 0:02:13]}
15... O-O {[%clk 0:02:32.8]} 16. Rf2 {[%clk 0:02:11.4]} 16... Ba6 {[%clk
0:02:29.1]} 17. Rf3 {[%clk 0:02:01.7]} 17... Rad8 {[%clk 0:02:27.1]} 18. Qf2
{[%clk 0:02:01.2]} 18... Rb8 {[%clk 0:02:13.1]} 19. Nd4 {[%clk 0:02:00.7]} 19...
Rfe8 {[%clk 0:02:11]} 20. Nf5 {[%clk 0:01:54.7]} 20... Bf8 {[%clk 0:02:09.9]}
21. Bd4 {[%clk 0:01:53.1]} 21... Nxe4 {[%clk 0:01:50.7]} 22. Nxe4 {[%clk
0:01:52.1]} 22... Rxe4 {[%clk 0:01:49.4]} 23. Bxg7 {[%clk 0:01:52.6]} 23... Re6
{[%clk 0:01:36.6]} 24. Rg3 {[%clk 0:01:12.4]} 24... Rg6 {[%clk 0:01:34.2]} 25.
Bc3 {[%clk 0:00:35.5]} 25... Re8 {[%clk 0:01:28.6]} 26. Qd4 {[%clk 0:00:29.8]}
26... f6 {[%clk 0:01:09.5]} 27. Qxf6 {[%clk 0:00:29.5]} 27... Rxg3 {[%clk
0:00:52.2]} 28. Qh8+ {[%clk 0:00:26.9]} 28... Kf7 {[%clk 0:00:51.4]} 29. Nxg3
{[%clk 0:00:24.6]} 29... Ke6 {[%clk 0:00:42.3]} 30. Re1+ {[%clk 0:00:24.2]}
30... Kd7 {[%clk 0:00:41.5]} 31. Qxh7+ {[%clk 0:00:22.5]} 31... Re7 {[%clk
0:00:39]} 32. Rxe7+ {[%clk 0:00:21.3]} 32... Bxe7 {[%clk 0:00:38.6]} 33. Nf5
{[%clk 0:00:20.5]} 33... Qd8 {[%clk 0:00:37.5]} 34. Bf6 {[%clk 0:00:19.3]} 34...
b5 {[%clk 0:00:36.7]} 35. Bxe7 {[%clk 0:00:18.9]} 35... Qe8 {[%clk 0:00:35.8]}
36. Bxd6+ {[%clk 0:00:17.7]} 1-0

[Event "*** Titled Tuesday Blitz"]
[Site "Chess.com"]
[Date "2020.04.28"]
[Round "5"]
[White "HrvojeZagreb"]
[Black "Mikromurks"]
[Result "0-1"]
[WhiteElo "2091"]
[BlackElo "2341"]
[TimeControl "180+1"]
[EndTime "10:55:07 PDT"]
[Termination "Mikromurks won on time"]

1. d4 {[%clk 0:03:00.9]} 1... Nf6 {[%clk 0:02:59.1]} 2. Bf4 {[%clk 0:03:00.2]}
2... b6 {[%clk 0:02:57.2]} 3. Nc3 {[%clk 0:02:59.2]} 3... Bb7 {[%clk 0:02:57.3]}
4. Qd3 {[%clk 0:02:58]} 4... e6 {[%clk 0:02:36.3]} 5. O-O-O {[%clk 0:02:56.3]}
5... d5 {[%clk 0:02:31]} 6. Qh3 {[%clk 0:02:54.4]} 6... Nbd7 {[%clk 0:02:21.1]}
7. e3 {[%clk 0:02:50.4]} 7... a6 {[%clk 0:02:18.6]} 8. Nf3 {[%clk 0:02:49.5]}
8... b5 {[%clk 0:02:14.9]} 9. Ne5 {[%clk 0:02:36.9]} 9... c5 {[%clk 0:01:59.6]}
10. f3 {[%clk 0:02:29.9]} 10... c4 {[%clk 0:01:56.6]} 11. e4 {[%clk 0:01:41.3]}
11... Bb4 {[%clk 0:01:41.9]} 12. exd5 {[%clk 0:01:27.1]} 12... Bxd5 {[%clk
0:01:31.7]} 13. Nxd5 {[%clk 0:01:24.9]} 13... Nxd5 {[%clk 0:01:31.2]} 14. Nc6
{[%clk 0:01:06.5]} 14... Qb6 {[%clk 0:01:02.6]} 15. Nxb4 {[%clk 0:00:57.5]}
15... Nxb4 {[%clk 0:01:02.2]} 16. Qg3 {[%clk 0:00:45.9]} 16... O-O {[%clk
0:00:41.5]} 17. Bh6 {[%clk 0:00:38.4]} 17... g6 {[%clk 0:00:40.3]} 18. Bxf8
{[%clk 0:00:37.9]} 18... Rxf8 {[%clk 0:00:39.5]} 19. c3 {[%clk 0:00:21.6]} 19...
Nd5 {[%clk 0:00:38.3]} 20. h4 {[%clk 0:00:12.9]} 20... h5 {[%clk 0:00:37.6]} 21.
f4 {[%clk 0:00:10.2]} 21... Rc8 {[%clk 0:00:35.5]} 22. Qf2 {[%clk 0:00:05.2]}
22... N7f6 {[%clk 0:00:34.6]} 23. Be2 {[%clk 0:00:04.6]} 23... b4 {[%clk
0:00:34.6]} 24. g4 {[%clk 0:00:01.9]} 24... bxc3 {[%clk 0:00:33.3]} 25. bxc3
{[%clk 0:00:01.7]} 25... Nxc3 {[%clk 0:00:33.6]} 26. Kc2 {[%clk 0:00:01.9]}
26... Nxa2 {[%clk 0:00:31.1]} 27. Rb1 {[%clk 0:00:01.3]} 27... Nb4+ {[%clk
0:00:29.3]} 0-1

[Event "*** Titled Tuesday Blitz"]
[Site "Chess.com"]
[Date "2020.04.28"]
[Round "5"]
[White "Irina_Barchuk"]
[Black "HouseOfDurin"]
[Result "1-0"]
[WhiteElo "2198"]
[BlackElo "2054"]
[TimeControl "180+1"]
[EndTime "10:55:07 PDT"]
[Termination "Irina_Barchuk won by resignation"]

1. e4 {[%clk 0:03:00]} 1... c5 {[%clk 0:02:59.6]} 2. Nc3 {[%clk 0:02:58.6]} 2...
Nc6 {[%clk 0:02:59.7]} 3. d3 {[%clk 0:02:53.1]} 3... g6 {[%clk 0:02:58.9]} 4.
Be3 {[%clk 0:02:51.6]} 4... d6 {[%clk 0:02:56.5]} 5. d4 {[%clk 0:02:51]} 5...
cxd4 {[%clk 0:02:56.1]} 6. Bxd4 {[%clk 0:02:51.9]} 6... Nxd4 {[%clk 0:02:55.6]}
7. Qxd4 {[%clk 0:02:52.4]} 7... Nf6 {[%clk 0:02:55.4]} 8. e5 {[%clk 0:02:49.5]}
8... dxe5 {[%clk 0:02:54.4]} 9. Qxe5 {[%clk 0:02:50.4]} 9... Bg7 {[%clk
0:02:44.8]} 10. Bb5+ {[%clk 0:02:48.3]} 10... Bd7 {[%clk 0:02:21]} 11. O-O-O
{[%clk 0:02:38.3]} 11... O-O {[%clk 0:02:19.7]} 12. Bxd7 {[%clk 0:02:36.9]}
12... Nxd7 {[%clk 0:02:18.9]} 13. Qb5 {[%clk 0:02:34.4]} 13... Bxc3 {[%clk
0:02:03.6]} 14. bxc3 {[%clk 0:02:32.1]} 14... Qb6 {[%clk 0:01:42.1]} 15. Qxd7
{[%clk 0:02:30.8]} 15... Rad8 {[%clk 0:01:23.3]} 16. Qg4 {[%clk 0:02:10.9]}
16... Qc5 {[%clk 0:00:32.2]} 17. Ne2 {[%clk 0:02:04.4]} 17... Qa3+ {[%clk
0:00:28.2]} 18. Kb1 {[%clk 0:02:03.5]} 18... a5 {[%clk 0:00:16.6]} 19. Rd4
{[%clk 0:01:48.1]} 19... Rxd4 {[%clk 0:00:15.4]} 20. Qxd4 {[%clk 0:01:44]} 20...
Rc8 {[%clk 0:00:12.7]} 21. h4 {[%clk 0:01:42.8]} 21... b5 {[%clk 0:00:11.1]} 22.
h5 {[%clk 0:01:40.8]} 22... Rc4 {[%clk 0:00:10.1]} 23. Qd8+ {[%clk 0:01:33.5]}
23... Kg7 {[%clk 0:00:10.2]} 24. hxg6 {[%clk 0:01:25.2]} 24... fxg6 {[%clk
0:00:08.6]} 25. Rh3 {[%clk 0:01:03.5]} 25... Qc5 {[%clk 0:00:08.2]} 26. Re3
{[%clk 0:00:58.6]} 26... Kf7 {[%clk 0:00:07.5]} 27. Rf3+ {[%clk 0:00:47.7]}
27... Ke6 {[%clk 0:00:06.3]} 28. Nd4+ {[%clk 0:00:44.4]} 28... Rxd4 {[%clk
0:00:03.9]} 29. Qxd4 {[%clk 0:00:41.8]} 29... Qxd4 {[%clk 0:00:03.2]} 30. cxd4
{[%clk 0:00:42.7]} 1-0

[Event "*** Titled Tuesday Blitz"]
[Site "Chess.com"]
[Date "2020.04.28"]
[Round "5"]
[White "rynos0411"]
[Black "Lestofante90"]
[Result "0-1"]
[WhiteElo "2376"]
[BlackElo "2665"]
[TimeControl "180+1"]
[EndTime "10:55:09 PDT"]
[Termination "Lestofante90 won by resignation"]

1. e4 {[%clk 0:03:00.9]} 1... g6 {[%clk 0:02:58.3]} 2. d4 {[%clk 0:03:00.5]}
2... Bg7 {[%clk 0:02:58.5]} 3. Nc3 {[%clk 0:02:59.8]} 3... d6 {[%clk 0:02:58.7]}
4. Be3 {[%clk 0:02:58.5]} 4... a6 {[%clk 0:02:58.9]} 5. f4 {[%clk 0:02:56.4]}
5... b5 {[%clk 0:02:58.9]} 6. Nf3 {[%clk 0:02:56.3]} 6... Bb7 {[%clk 0:02:58.7]}
7. Bd3 {[%clk 0:02:56.3]} 7... Nd7 {[%clk 0:02:58]} 8. O-O {[%clk 0:02:52.5]}
8... c5 {[%clk 0:02:58]} 9. e5 {[%clk 0:02:42.5]} 9... cxd4 {[%clk 0:02:57.4]}
10. Bxd4 {[%clk 0:02:39.9]} 10... dxe5 {[%clk 0:02:57.5]} 11. fxe5 {[%clk
0:02:26.1]} 11... Nxe5 {[%clk 0:02:55.5]} 12. Bxe5 {[%clk 0:02:13.5]} 12... Bxe5
{[%clk 0:02:52.5]} 13. Bxb5+ {[%clk 0:01:56]} 13... axb5 {[%clk 0:02:51.7]} 14.
Nxe5 {[%clk 0:01:56.4]} 14... Qb6+ {[%clk 0:02:48.8]} 15. Kh1 {[%clk 0:01:55.8]}
15... Nf6 {[%clk 0:02:49.1]} 16. Rxf6 {[%clk 0:01:47.4]} 16... Qxf6 {[%clk
0:02:40.5]} 17. Qd7+ {[%clk 0:01:46.9]} 17... Kf8 {[%clk 0:02:40.8]} 18. Qxb7
{[%clk 0:01:47.4]} 18... Kg7 {[%clk 0:02:41.2]} 19. Nf3 {[%clk 0:01:41.1]} 19...
Rab8 {[%clk 0:02:40.8]} 20. Qe4 {[%clk 0:01:39.3]} 20... b4 {[%clk 0:02:38.5]}
21. Nd5 {[%clk 0:01:38.2]} 21... Qxb2 {[%clk 0:02:38.9]} 22. Rf1 {[%clk
0:01:36.1]} 22... e6 {[%clk 0:02:38.6]} 23. Ng5 {[%clk 0:01:26.8]} 23... Rhf8
{[%clk 0:02:36.5]} 24. Nf4 {[%clk 0:00:49.6]} 24... Kg8 {[%clk 0:02:18.5]} 25.
Qd3 {[%clk 0:00:43.4]} 25... Rbd8 {[%clk 0:02:17.1]} 26. Qh3 {[%clk 0:00:40.6]}
26... Qg7 {[%clk 0:02:09.2]} 27. Qh4 {[%clk 0:00:27.5]} 27... Rd4 {[%clk
0:02:08]} 28. Qf2 {[%clk 0:00:24.4]} 28... Rc4 {[%clk 0:01:57.3]} 29. Qe2 {[%clk
0:00:19.3]} 29... Rc6 {[%clk 0:01:50.9]} 30. h3 {[%clk 0:00:17.2]} 30... h6
{[%clk 0:01:47.6]} 31. Ne4 {[%clk 0:00:16.9]} 31... Rfc8 {[%clk 0:01:44.2]} 32.
Nd3 {[%clk 0:00:16.6]} 32... Rxc2 {[%clk 0:01:43.4]} 33. Qf3 {[%clk 0:00:15.6]}
33... Rxa2 {[%clk 0:01:40]} 34. Nxb4 {[%clk 0:00:15.6]} 34... Ra1 {[%clk
0:01:36.3]} 35. Nd3 {[%clk 0:00:14.6]} 35... Rxf1+ {[%clk 0:01:35.2]} 36. Qxf1
{[%clk 0:00:15.5]} 36... Rd8 {[%clk 0:01:33.3]} 37. Ndc5 {[%clk 0:00:13.1]}
37... Qe5 {[%clk 0:01:30.9]} 38. Nf6+ {[%clk 0:00:11.2]} 38... Kg7 {[%clk
0:01:30.3]} 39. Ncd7 {[%clk 0:00:11.4]} 39... Qd4 {[%clk 0:01:24.5]} 40. Qb5
{[%clk 0:00:09]} 40... Ra8 {[%clk 0:01:12.5]} 41. Kh2 {[%clk 0:00:07.7]} 41...
Qd6+ {[%clk 0:01:10.7]} 42. Kg1 {[%clk 0:00:06.1]} 42... Ra1+ {[%clk 0:01:08.7]}
43. Kf2 {[%clk 0:00:06.5]} 43... Qf4+ {[%clk 0:01:01.1]} 44. Ke2 {[%clk
0:00:06.2]} 44... Qf1+ {[%clk 0:01:00.5]} 0-1

[Event "*** Titled Tuesday Blitz"]
[Site "Chess.com"]
[Date "2020.04.28"]
[Round "5"]
[White "PawnEatingZombie"]
[Black "agrigo3"]
[Result "0-1"]
[WhiteElo "2108"]
[BlackElo "2304"]
[TimeControl "180+1"]
[EndTime "10:55:11 PDT"]
[Termination "agrigo3 won by resignation"]

1. d4 {[%clk 0:03:00.9]} 1... d6 {[%clk 0:02:59.6]} 2. e4 {[%clk 0:02:59.9]}
2... Nf6 {[%clk 0:02:58.4]} 3. Bd3 {[%clk 0:02:58.8]} 3... e5 {[%clk 0:02:58]}
4. c3 {[%clk 0:02:57.8]} 4... d5 {[%clk 0:02:58.4]} 5. dxe5 {[%clk 0:02:55.6]}
5... Nxe4 {[%clk 0:02:58.6]} 6. Nf3 {[%clk 0:02:54.9]} 6... Bg4 {[%clk
0:02:50.2]} 7. Nbd2 {[%clk 0:02:50.1]} 7... Nc5 {[%clk 0:02:47.2]} 8. Bb1 {[%clk
0:02:48.3]} 8... Nc6 {[%clk 0:02:38.3]} 9. b4 {[%clk 0:02:45.4]} 9... Ne6 {[%clk
0:02:30.5]} 10. Qa4 {[%clk 0:02:44.8]} 10... Bxf3 {[%clk 0:01:39.9]} 11. Nxf3
{[%clk 0:02:42.2]} 11... Be7 {[%clk 0:01:31.9]} 12. b5 {[%clk 0:02:39.9]} 12...
Nb8 {[%clk 0:01:31.8]} 13. Nd4 {[%clk 0:02:30.8]} 13... O-O {[%clk 0:01:28.1]}
14. O-O {[%clk 0:02:29.6]} 14... Nd7 {[%clk 0:01:27.4]} 15. f4 {[%clk 0:02:26]}
15... Ndc5 {[%clk 0:01:23.8]} 16. Qd1 {[%clk 0:02:23]} 16... Ne4 {[%clk
0:01:12.3]} 17. f5 {[%clk 0:02:11.3]} 17... Nxc3 {[%clk 0:01:04.3]} 18. Qh5
{[%clk 0:01:11.7]} 18... Nxd4 {[%clk 0:00:54.9]} 19. f6 {[%clk 0:01:11.4]} 19...
g6 {[%clk 0:00:54.9]} 20. Qh6 {[%clk 0:01:07.4]} 20... Ne6 {[%clk 0:00:27.9]}
21. Bf5 {[%clk 0:00:35.7]} 21... Bxf6 {[%clk 0:00:20.8]} 22. exf6 {[%clk
0:00:13.8]} 22... Qxf6 {[%clk 0:00:19.3]} 23. Bg5 {[%clk 0:00:08.6]} 23... Qd4+
{[%clk 0:00:13.4]} 24. Kh1 {[%clk 0:00:07.3]} 24... Nxg5 {[%clk 0:00:12.8]} 0-1

[Event "*** Titled Tuesday Blitz"]
[Site "Chess.com"]
[Date "2020.04.28"]
[Round "5"]
[White "Irishchessman16"]
[Black "donotreadit"]
[Result "0-1"]
[WhiteElo "2430"]
[BlackElo "2678"]
[TimeControl "180+1"]
[EndTime "10:55:13 PDT"]
[Termination "donotreadit won by resignation"]

1. e4 {[%clk 0:02:59.3]} 1... d6 {[%clk 0:02:57.8]} 2. d4 {[%clk 0:02:55.8]}
2... Nf6 {[%clk 0:02:58.4]} 3. Nc3 {[%clk 0:02:54.2]} 3... g6 {[%clk 0:02:59.1]}
4. f4 {[%clk 0:02:53.4]} 4... Bg7 {[%clk 0:02:59.8]} 5. Nf3 {[%clk 0:02:49.6]}
5... O-O {[%clk 0:03:00.3]} 6. a3 {[%clk 0:02:50]} 6... c5 {[%clk 0:02:59.5]} 7.
dxc5 {[%clk 0:02:48.8]} 7... Qa5 {[%clk 0:03:00.1]} 8. b4 {[%clk 0:02:48.1]}
8... Qd8 {[%clk 0:03:00.8]} 9. e5 {[%clk 0:02:42.1]} 9... Nh5 {[%clk 0:02:39.5]}
10. g4 {[%clk 0:02:37.1]} 10... Bxg4 {[%clk 0:02:38.2]} 11. Be2 {[%clk 0:02:36]}
11... dxe5 {[%clk 0:02:17.5]} 12. Qxd8 {[%clk 0:02:34]} 12... Rxd8 {[%clk
0:02:17]} 13. Nxe5 {[%clk 0:02:34.3]} 13... Bxe2 {[%clk 0:02:04.9]} 14. Kxe2
{[%clk 0:02:35.2]} 14... Nd7 {[%clk 0:02:05.3]} 15. Bd2 {[%clk 0:02:03.4]} 15...
Nxe5 {[%clk 0:01:55]} 16. fxe5 {[%clk 0:02:04.3]} 16... Bxe5 {[%clk 0:01:55.5]}
17. Raf1 {[%clk 0:02:01.9]} 17... Rxd2+ {[%clk 0:01:51.4]} 18. Kxd2 {[%clk
0:02:00]} 18... Rd8+ {[%clk 0:01:52]} 19. Ke3 {[%clk 0:01:57.8]} 19... Bxc3
{[%clk 0:01:52]} 20. Rd1 {[%clk 0:01:58]} 20... Rb8 {[%clk 0:01:44.1]} 21. Rd7
{[%clk 0:01:52.4]} 21... Nf6 {[%clk 0:01:44.6]} 22. Rd3 {[%clk 0:01:47.1]} 22...
Be5 {[%clk 0:01:43.6]} 23. Kf3 {[%clk 0:01:42.5]} 23... Bc7 {[%clk 0:01:34]} 24.
h3 {[%clk 0:01:37.6]} 24... e5 {[%clk 0:01:33.2]} 25. Rd2 {[%clk 0:01:30.7]}
25... e4+ {[%clk 0:01:30.9]} 26. Ke3 {[%clk 0:01:29.1]} 26... Kf8 {[%clk
0:01:20.7]} 27. Rf1 {[%clk 0:01:26.9]} 27... Ke7 {[%clk 0:01:20.9]} 28. Rdf2
{[%clk 0:01:26.3]} 28... Be5 {[%clk 0:01:21.5]} 29. c4 {[%clk 0:01:14.8]} 29...
Rd8 {[%clk 0:01:09.7]} 30. Rd2 {[%clk 0:01:14.9]} 30... Rxd2 {[%clk 0:01:06.6]}
31. Kxd2 {[%clk 0:01:15.8]} 31... Bd4 {[%clk 0:01:06.8]} 32. Kc2 {[%clk
0:01:11.4]} 32... Ke6 {[%clk 0:01:03.4]} 33. a4 {[%clk 0:01:05.6]} 33... g5
{[%clk 0:01:02.9]} 34. a5 {[%clk 0:01:01.5]} 34... a6 {[%clk 0:01:02.6]} 35. Rd1
{[%clk 0:01:00]} 35... Ke5 {[%clk 0:00:57.6]} 36. Kd2 {[%clk 0:00:46.1]} 36...
h5 {[%clk 0:00:55.8]} 37. Rb1 {[%clk 0:00:45.4]} 37... g4 {[%clk 0:00:53.7]} 38.
hxg4 {[%clk 0:00:44.6]} 38... hxg4 {[%clk 0:00:54.6]} 39. c6 {[%clk 0:00:38.2]}
39... bxc6 {[%clk 0:00:52.9]} 40. b5 {[%clk 0:00:38.3]} 40... cxb5 {[%clk
0:00:51.6]} 41. cxb5 {[%clk 0:00:38.8]} 41... axb5 {[%clk 0:00:51.7]} 42. Rxb5+
{[%clk 0:00:39.7]} 42... Nd5 {[%clk 0:00:52]} 43. a6 {[%clk 0:00:38.3]} 43... g3
{[%clk 0:00:50.9]} 44. Ra5 {[%clk 0:00:19.1]} 44... Bc3+ {[%clk 0:00:50.6]} 45.
Ke2 {[%clk 0:00:15.4]} 45... Bxa5 {[%clk 0:00:51.1]} 46. a7 {[%clk 0:00:15.7]}
46... Nc7 {[%clk 0:00:51.5]} 0-1

[Event "*** Titled Tuesday Blitz"]
[Site "Chess.com"]
[Date "2020.04.28"]
[Round "5"]
[White "Larisa004"]
[Black "Konek-Gorbunok"]
[Result "1-0"]
[WhiteElo "2111"]
[BlackElo "2308"]
[TimeControl "180+1"]
[EndTime "10:55:16 PDT"]
[Termination "Larisa004 won on time"]

1. e4 {[%clk 0:03:00.1]} 1... c5 {[%clk 0:02:58.9]} 2. Nf3 {[%clk 0:02:58.2]}
2... a6 {[%clk 0:02:58.6]} 3. d4 {[%clk 0:02:57.2]} 3... cxd4 {[%clk 0:02:58.4]}
4. Nxd4 {[%clk 0:02:56.3]} 4... Nf6 {[%clk 0:02:58.4]} 5. Nc3 {[%clk 0:02:55.3]}
5... e5 {[%clk 0:02:58.8]} 6. Nb3 {[%clk 0:02:53.1]} 6... Bb4 {[%clk 0:02:58.5]}
7. Bd2 {[%clk 0:02:42.6]} 7... Nc6 {[%clk 0:02:57.4]} 8. Nd5 {[%clk 0:02:30]}
8... Bxd2+ {[%clk 0:02:50.8]} 9. Nxd2 {[%clk 0:02:29.2]} 9... O-O {[%clk
0:02:44.9]} 10. Nxf6+ {[%clk 0:02:25.1]} 10... Qxf6 {[%clk 0:02:44]} 11. Bc4
{[%clk 0:02:25]} 11... d6 {[%clk 0:02:40.2]} 12. Qf3 {[%clk 0:02:21.7]} 12...
Qe7 {[%clk 0:02:28.1]} 13. c3 {[%clk 0:02:18.7]} 13... Be6 {[%clk 0:02:27.5]}
14. O-O {[%clk 0:02:14.7]} 14... Rad8 {[%clk 0:02:23.1]} 15. Rad1 {[%clk
0:02:07.9]} 15... b5 {[%clk 0:02:16.7]} 16. Bb3 {[%clk 0:02:05.6]} 16... Na5
{[%clk 0:02:08.9]} 17. Bxe6 {[%clk 0:02:03.2]} 17... Qxe6 {[%clk 0:02:02.1]} 18.
Qe2 {[%clk 0:02:01.4]} 18... d5 {[%clk 0:01:39.8]} 19. b4 {[%clk 0:01:53.3]}
19... Nc6 {[%clk 0:01:29.1]} 20. exd5 {[%clk 0:01:49.5]} 20... Rxd5 {[%clk
0:01:23.6]} 21. Nb3 {[%clk 0:01:49.6]} 21... Ne7 {[%clk 0:00:48.2]} 22. Nc5
{[%clk 0:01:48.5]} 22... Qd6 {[%clk 0:00:26.4]} 23. Rfe1 {[%clk 0:01:37]} 23...
f6 {[%clk 0:00:20.5]} 24. a3 {[%clk 0:01:22.4]} 24... Rd8 {[%clk 0:00:19.9]} 25.
Nb7 {[%clk 0:01:19.4]} 25... Rxd1 {[%clk 0:00:10.4]} 26. Nxd6 {[%clk 0:01:18.7]}
26... Rxe1+ {[%clk 0:00:09]} 27. Qxe1 {[%clk 0:01:19.6]} 27... Rxd6 {[%clk
0:00:09.4]} 28. f4 {[%clk 0:01:05.9]} 28... Ng6 {[%clk 0:00:08.1]} 29. g3 {[%clk
0:01:03.9]} 29... Kf7 {[%clk 0:00:06.6]} 30. Qe4 {[%clk 0:01:01.1]} 30... exf4
{[%clk 0:00:05.2]} 31. gxf4 {[%clk 0:00:59.2]} 31... Re6 {[%clk 0:00:04.8]} 32.
Qd4 {[%clk 0:00:56.8]} 32... Ne7 {[%clk 0:00:04.1]} 33. Qd3 {[%clk 0:00:53.3]}
33... g6 {[%clk 0:00:02.9]} 34. c4 {[%clk 0:00:51.5]} 34... bxc4 {[%clk
0:00:01.7]} 35. Qxc4 {[%clk 0:00:52]} 35... Nf5 {[%clk 0:00:01.5]} 36. a4 {[%clk
0:00:47.4]} 1-0